Workbook

Sheet Pasiūlymas
A2: PIRKIMO SĄLYGŲ PRIEDAS "PASIŪLYMŲ FORMA"
A4: ELEKTROS TIEKIMO IR GAMYBOS ĮRANGOS REMONTAS
A6: Kam: | B6: VšĮ LSMU Kauno ligoninė
A8: Data: | B8: 2022-07-28
A9: Nr.: | B9: 96
A10: Vieta: | B10: Kaunas
A12: Tiekėjo pavadinimas / Ūkio subjektų grupės nariai: | C12: UAB "Eltecha"
A13: Tiekėjo kodas (-ai): | C13: 135148052
A14: Tiekėjo adresas (-ai): | C14: Europos pr. 17, LT46329
A15: Tiekėjo PVM mokėtojo kodas(-ai): | C15: LT351480515
A16: Tiekėjo / Ūkio subjektų grupės atsakingo partnerio sąskaitos numeris, banko pavadinimas ir banko kodas (-ai): | C16: A.s. LT244010042500031002 ; Luminor bankas AB; b.k. 40100
A17: Asmens atsakingo už pasiūlymą vardas, pavardė: | C17: Vincas Motejūnas
A18: Asmens atsakingo už pasiūlymą telefono numeris, el. pašto adresas: | C18: Tel. 837391446, mob.tel. 865518222, El.p. vincas@eltecha.lt
A19: Tiekėjo / Ūkio subjektų grupės, laimėjimo atveju, pasirašančio sutartį asmens vardas, pavardė, pareigos: | C19: Vincas Motejūnas
A20: Tiekėjo / Ūkio subjektų grupės, laimėjimo atveju, už sutarties vykdymą atsakingo asmens vardas, pavardė, telefono numeris, elektroninio pašto adresas: | C20: Vincas Motejūnas; tel. 837391446; mob.tel. 865518222; vincas@eltecha.lt
A21: (1) Tiekėjo / Ūkio subjektų grupės narių, (2) ūkio subjektų, kurių pajėgumais remiamasi, ir (3) jei pašalinimo pagrindai taikomi visiems subtiekėjams - subtiekėjų, kolegialaus priežiūros organo (Stebėtojų tarybos) ir (ar) kolegialaus valdymo organo (Valdybos) narių sąrašas (jei sudaryta) ir (ar) asmuo, kuriam suteikti VPĮ 46 str. 2 d. 2 p. numatyti įgaliojimai | G21: =IF((SUMPRODUCT(--(C21=""))>0), "Privaloma užpildyti, kai taikomi pašalinimo pagrindai", "") -> Privaloma užpildyti, kai taikomi pašalinimo pagrindai
A23: Tiekėjo patvirtinimai:
A24: 1. Šiuo pasiūlymu pažymime, kad sutinkame su visomi pirkimo sąlygomis, nustatytomis:
A25: 1.1. viešojo pirkimo dokumentuose
A26: 1.2. kituose pirkimo dokumentuose (jų paaiškinimuose, papildymuose).
A27: 2. Patvirtiname, kad informacija ir duomenys, pateikti pasiūlyme, yra teisingi ir apima viską, ko reikia tinkamam sutarties įvykdymui
A28: 3. Patvirtiname, kad jei pasiūlyme nenurodyti kolegialaus priežiūros/valdymo organų nariai, šie organai juridiniuose asmenyse nėra sudaryti (taikoma, kai pirkimo dokumentuose nustatyti pašalinimo pagrindai).
A29: 4. Pasiūlymas galioja iki termino, nustatyto pirkimo dokumentuose.
A30: 5. Tais atvejais, kai pagal galiojančius teisės aktus tiekėjui nereikia mokėti PVM, jis nurodo priežastis, dėl kurių PVM nemoka:
A31: 6. Tiekėjas kainas pateikia, nurodydamas ne daugiau skaičių po kablelio, nei leidžiama pirkimo dokumentuose.
A32: 1. DALIS | B32: KABELIO REMONTAS JOSVAINIŲG. 2
A34: Tiekėjo pasiūlymas:
A35: Nr. | B35: Pavadinimas | C35: Kiekis | D35: Mato vienetas | E35: Kaina be PVM, Eur | F35: Suma be PVM, Eur
A36: 1. | B36: Kabelio remontas Josvainiųg. 2
A37: 1.1. | B37: Žemės kasimo darbai | C37: 2 | D37: vnt. | E37: 90.05 | F37: =IF(ISBLANK(E37),"", PRODUCT(C37,E37)) -> 180.1
A38: 1.1.1. | B38: Siūlomas įkainis R33-100
A39: 1.2. | B39: Trinkelių dangos atstatymas | C39: 5 | D39: kv. m | E39: 63.4 | F39: =IF(ISBLANK(E39),"", PRODUCT(C39,E39)) -> 317
A40: 1.3. | B40: 0,4kV daugiau kaip 120mm2skerspiūvio kabelio remontas, montuojant dvi jungiamasias movas. | C40: 1 | D40: vnt. | E40: 1311.27 | F40: =IF(ISBLANK(E40),"", PRODUCT(C40,E40)) -> 1311.27
A41: 1.3.1. | B41: Siūlomas įkainis R33-112
A42: 1.4. | B42: 0,4 kV jėgos kabelio bandymas- gedimo vietos nustatymui. | C42: 1 | D42: vnt. | E42: 487.78 | F42: =IF(ISBLANK(E42),"", PRODUCT(C42,E42)) -> 487.78
A43: 1.4.1. | B43: Siūlomas įkainis D1-432
A44: 1.5. | B44: 0,4kV jungiamoji mova 150mm2 | C44: 4 | D44: kompl. | E44: 667.46 | F44: =IF(ISBLANK(E44),"", PRODUCT(C44,E44)) -> 2669.84
E45: Suma be PVM | F45: =IF((COUNT(C37:C44)<>COUNT(F37:F44)),"", SUM(F37:F44)) -> 4965.99 | G45: =IF((COUNT(C37:C44)<>COUNT(F37:F44)),"Neužpildytos visų objektų kainos", "") -> 
E46: PVM suma | F46: =+F45*0.21 -> 1042.8579
E47: Suma su PVM | F47: =IF(ISBLANK(F46), "", SUM(F45:F46)) -> 6008.8479 | G47: Dalies biudžetas su PVM: 6050 Eur
A51: 2. DALIS | B51: ESAMŲ 0,4KV GALINIŲ MOVŲ AVARINĖS BŪKJLĖS LIKVIDAVIMAS
A53: Tiekėjo pasiūlymas:
A54: Nr. | B54: Pavadinimas | C54: Kiekis | D54: Mato vienetas | E54: Kaina be PVM, Eur | F54: Suma be PVM, Eur
A55: 2. | B55: ESAMŲ 0,4KV GALINIŲ MOVŲ AVARINĖS BŪKJLĖS LIKVIDAVIMAS
A56: 2.1. | B56: Termosusitraukiančių galinių movų iki 1kv įtampos 3 gyslų kabeliams su poieriaus izoliacija montavimas kai kabelio gyslų skerspjūvio plotas 150-240mm2 | C56: 8 | D56: vnt. | E56: 95.46 | F56: =IF(ISBLANK(E56),"", PRODUCT(C56,E56)) -> 763.68
A57: 2.1.1. | B57: Siūlomas įkainis N21P-0136
A58: 2.2. | B58: Termosusitraukiančių galinių movų iki 1kv įtampos 3 gyslų kabeliams su poieriaus izoliacija montavimas kai kabelio gyslų skerspjūvio plotas 70-120mm2 | C58: 4 | D58: vnt. | E58: 84.14 | F58: =IF(ISBLANK(E58),"", PRODUCT(C58,E58)) -> 336.56
A59: 2.2.1. | B59: Siūlomas įkainis N21P-0136
A60: 2.3. | B60: Kabelių vienvielių gyslų su antgaliais prijungimas prie aaparatų gnybtų, kai kabelio gyslų skerspjūvio plotas daugiau kaip 150mm2 iki 185mm2 | C60: 32 | D60: vnt. | E60: 9.8 | F60: =IF(ISBLANK(E60),"", PRODUCT(C60,E60)) -> 313.6
A61: 2.3.1. | B61: Siūlomas įkainis N21P-0161
A62: 2.4. | B62: Kabelių vienvielių gyslų su antgaliais prijungimas prie aaparatų gnybtų, kai kabelio gyslų skerspjūvio plotas daugiau kaip 120mm2 iki 150mm2 | C62: 16 | D62: vnt. | E62: 9.58 | F62: =IF(ISBLANK(E62),"", PRODUCT(C62,E62)) -> 153.28
A63: 2.4.1. | B63: Siūlomas įkainis N21P-0161
A64: 2.5. | B64: Kabelio izoliacijos varžos matavimas | C64: 12 | D64: vnt. | E64: 17.8 | F64: =IF(ISBLANK(E64),"", PRODUCT(C64,E64)) -> 213.6
A65: 2.5.1. | B65: Siūlomas įkainis D1-374-2
A66: 2.6. | B66: Laidų ir kabelių gyslų markiravimas | C66: 12 | D66: vnt. | E66: 4.26 | F66: =IF(ISBLANK(E66),"", PRODUCT(C66,E66)) -> 51.12
A67: 2.6.1. | B67: Siūlomas įkainis D1-637
A68: 2.7. | B68: 0,4kv galinė mova | C68: 12 | D68: kompl. | E68: 156.61 | F68: =IF(ISBLANK(E68),"", PRODUCT(C68,E68)) -> 1879.32
E69: Suma be PVM | F69: =IF((COUNT(C56:C68)<>COUNT(F56:F68)),"", SUM(F56:F68)) -> 3711.16 | G69: =IF((COUNT(C56:C68)<>COUNT(F56:F68)),"Neužpildytos visų objektų kainos", "") -> 
E70: PVM suma | F70: =+F69*0.21 -> 779.3436
E71: Suma su PVM | F71: =IF(ISBLANK(F70), "", SUM(F69:F70)) -> 4490.5036 | G71: Dalies biudžetas su PVM: 4840 Eur
A75: 3. DALIS | B75: TP-519 0.4KV ĮVADINIŲ KOMUTACINIŲ APARATŲ DEMONTAVIMAS-SUMONTAVIMAS
A77: Tiekėjo pasiūlymas:
A78: Nr. | B78: Pavadinimas | C78: Kiekis | D78: Mato vienetas | E78: Kaina be PVM, Eur | F78: Suma be PVM, Eur
A79: 3. | B79: TP-519 0.4kV įvadinių komutacinių aparatų demontavimas-sumontavimas
A80: 3.1. | B80: Daugiau kaip 100A automatinio jungiklio su šynomis demontavimas | C80: 3 | D80: vnt. | E80: 58.59 | F80: =IF(ISBLANK(E80),"", PRODUCT(C80,E80)) -> 175.77
A81: 3.1.1. | B81: Siūlomas įkainis R33-162
A82: 3.2. | B82: Metaliniųpavienių atraminių konstrukcijų montavimas k8=1.05 | C82: 3 | D82: vnt. | E82: 158.12 | F82: =IF(ISBLANK(E82),"", PRODUCT(C82,E82)) -> 474.36
A83: 3.2.1. | B83: Siūlomas įkainis N21-157
A84: 3.3. | B84: Lanksčių įvadų montavimas | C84: 9 | D84: vnt. | E84: 12.32 | F84: =IF(ISBLANK(E84),"", PRODUCT(C84,E84)) -> 110.88
A85: 3.3.1. | B85: Siūlomas įkainis N21-169
A86: 3.4. | B86: Iki 630A saugiklių kirtiklių blokų montavimas | C86: 3 | D86: vnt. | E86: 113.63 | F86: =IF(ISBLANK(E86),"", PRODUCT(C86,E86)) -> 340.89
A87: 3.4.1. | B87: Siūlomas įkainis N21-210
A88: 3.5. | B88: Horizontalus saugiklių kirtiklių blokas 630A | C88: 3 | D88: vnt. | E88: 211.21 | F88: =IF(ISBLANK(E88),"", PRODUCT(C88,E88)) -> 633.63
A89: 3.6. | B89: Jungtys 0,4kV 480A | C89: 9 | D89: kompl. | E89: 168.14 | F89: =IF(ISBLANK(E89),"", PRODUCT(C89,E89)) -> 1513.26
A90: 3.7. | B90: Saugikliai 630A | C90: 9 | D90: vnt. | E90: 14.64 | F90: =IF(ISBLANK(E90),"", PRODUCT(C90,E90)) -> 131.76
E91: Suma be PVM | F91: =IF((COUNT(C80:C90)<>COUNT(F80:F90)),"", SUM(F80:F90)) -> 3380.55 | G91: =IF((COUNT(C80:C90)<>COUNT(F80:F90)),"Neužpildytos visų objektų kainos", "") -> 
E92: PVM suma | F92: =+F91*0.21 -> 709.9155
E93: Suma su PVM | F93: =IF(ISBLANK(F92), "", SUM(F91:F92)) -> 4090.4655 | G93: Dalies biudžetas su PVM: 4235 Eur
A97: 4. DALIS | B97: AVARINIO APŠVIETIMO INSTALIACIJOS MONTAVIMAS
A99: Tiekėjo pasiūlymas:
A100: Nr. | B100: Pavadinimas | C100: Kiekis | D100: Mato vienetas | E100: Kaina be PVM, Eur | F100: Suma be PVM, Eur
A101: 4. | B101: AVARINIO APŠVIETIMO INSTALIACIJOS MONTAVIMAS
A102: 4.1. | B102: 24 modulių paskirstymo skydelių surinkimas ir montavimas | C102: 1 | D102: vnt. | E102: 335.83 | F102: =IF(ISBLANK(E102),"", PRODUCT(C102,E102)) -> 335.83
A103: 4.2. | B103: Dviejų trijų gyslų laidų tiesimas paruoštuose kanaluose, sienose ir perdenginiuose. | C103: 460 | D103: m | E103: 3.12 | F103: 1435.2
A104: 4.3. | B104: Iki 25 mm skersmens viniplasčių vamzdžių montavimas sienomis ir kolonomis. | C104: 420 | D104: m | E104: 2.18 | F104: 915.6
A105: 4.4. | B105: Kabelio tiesimas įrengtom konstrukcijom arba loviais tvirtinant visu ilgiu, kai 1m kabelio masė iki 2kg. | C105: 20 | D105: m | E105: 10.76 | F105: 215.2
A106: 4.5. | B106: Led šviestuvų montavimas pakabinamų lubų angose | C106: 24 | D106: vnt. | E106: 64.78 | F106: 1554.72
A107: 4.6. | B107: laidų ir kabelių vienvielių gyslų iki 16mm2 skerspjūvio gyslų su antgaliais prijungimas prie aparatų gnybtų | C107: 10 | D107: vnt. | E107: 3.82 | F107: 38.2
A108: 4.7. | B108: Sieninio paskirstymo skydo prijungimas prie nepriklausomo nepertraukiamo energijos šaltinio. | C108: 4 | D108: kompl. | E108: 98.33 | F108: 393.32
E109: Suma be PVM | F109: =IF((COUNT(C102:C108)<>COUNT(F102:F108)),"", SUM(F102:F108)) -> 4888.07 | G109: =IF((COUNT(C102:C108)<>COUNT(F102:F108)),"Neužpildytos visų objektų kainos", "") -> 
E110: PVM suma | F110: =+F109*0.21 -> 1026.4947
E111: Suma su PVM | F111: =IF(ISBLANK(F110), "", SUM(F109:F110)) -> 5914.5647 | G111: Dalies biudžetas su PVM: 6050 Eur
A115: 5. DALIS | B115: AUTOMATINIO REZERVO ĮRENGIMAS P.MAŽYLIOYLIO GIMDYMO NAMUOPSE V.PUTVINSKIO G.
A117: Tiekėjo pasiūlymas:
A118: Nr. | B118: Pavadinimas | C118: Kiekis | D118: Mato vienetas | E118: Kaina be PVM, Eur | F118: Suma be PVM, Eur
A119: 5. | B119: AUTOMATINIO REZERVO ĮRENGIMAS P.MAŽYLIOYLIO GIMDYMO NAMUOPSE V.PUTVINSKIO G.
A120: 5.1. | B120: Automatinių jungiklių pastatymas, srovė iki 1000A žemos įtampops spintose. | C120: 2 | D120: vnt.
A121: 5.2. | B121: Automatinio pakartotinio jungimo įrenginys | C121: 1 | D121: vnt.
A122: 5.3. | B122: Viengyslio arba daugiagyslio laido vienoje pynėje iki 70mm2 skerspjūvio įtraukimas į sumontuotus vamzdžius | C122: 60 | D122: m
A123: 5.4. | B123: Laidų ir kabelių vienvielių gyslų iki 70mm2 skerspjūvio gyslų su antgaliais prijungimas prie aparatų gnybtų. | C123: 12 | D123: vnt.
G124: =IF((COUNT(C120:C123)<>COUNT(F120:F123)),"Neužpildytos visų objektų kainos", "") -> Neužpildytos visų objektų kainos
G126: Dalies biudžetas su PVM: 7865 Eur

Sheet Subtiekėjai ir priedai
A2: Ūkio subjektai (įskaitant kvazisubtiekėjus - fiziniai asmenys, kuriuos ketinama įdarbinti pirkimo laimėjimo atveju), kurių pajėgumais tiekėjas remiasi, kad atitiktų keliamus kvalifikacijos reikalavimus:
A5: Pavadinimas* | C5: Kodas, adresas | F5: Perduodami įsipareigojimai | I5: Perduodamų įsipareigojimų dalis nuo visos pirkimo sutarties (Eur arba %) | K5: Kval. Reikalavimo Nr.
A17: Subtiekėjams / subteikėjams / subrangovams numatomos perduoti veiklos (privaloma nurodyti) ir šių ūkio subjektų pavadinimai (jei žinomi):
A19: Pavadinimas | C19: Kodas, adresas | F19: Perduodama veikla* | I19: Perduodamos veiklos dalis nuo visos pirkimo sutarties (Eur arba %)
A33: Kartu su pasiūlymu pateikiami šie dokumentai:
A35: Nr. | B35: Dokumento pavadinimas | H35: Dokumentas yra konfidencialus? Taip/Ne
A36: 1 | B36: Jungtinės veiklos kopija (jei taikoma)
A37: 2 | B37: Europos bendrasis viešųjų pirkimų dokumentas
A38: 3 | B38: Subtiekimo sutartis, ketinimų protokolas, preliminarios sutartys ar kiti dokumentai, patvirtinantys, kad laimėjus pirkimą tiekėjui bus prieinami kitų ūkio subjektų ištekliai (jei pasitelkiami kvalifikacijos atitikimui)
A48: Pasiūlyme nurodyta Prekės kaina, išskyrus jos sudedamąsias dalis, subtiekėjai, taip pat kita informacija, kuri teisės aktų nustatyta tvarka turi būti skelbiama arba kitokiu būdu viešai prieinama visuomenei, nėra laikoma konfidencialia informacija. Konfidencialią informaciją sudaro, visų pirma, komercinė (gamybinė) paslaptis ir konfidencialieji pasiūlymų aspektai. Informacija, kurią viešai skelbti įpareigoja Lietuvos Respublikos įstatymai, negali būti tiekėjo nurodoma kaip konfidenciali, todėl, tiekėjui nurodžius tokią informaciją kaip konfidencialią, perkančioji organizacija turi teisę ją skelbti. Jei tiekėjas nenurodo konfidencialios informacijos, laikoma, kad konfidencialios informacijos tiekėjo pasiūlyme nėra. Vadovaujantis Informacijos viešinimo Centrinėje viešųjų pirkimų informacinėje sistemoje tvarkos aprašu, patvirtintu Viešųjų pirkimų tarnybos direktoriaus 2017 m. birželio 19 d. įsakymu Nr. 1S-91 „Dėl Informacijos viešinimo Centrinėje viešųjų pirkimų informacinėje sistemoje tvarkos aprašo patvirtinimo“, perkančioji organizacija laimėjusio dalyvio pasiūlymą, išskyrus informaciją, kurią tiekėjas nurodė kaip konfidencialią, paskelbs CVP IS.
A51: Tiekėjo arba jo įgalioto asmens pareigų pavadinimas:
A53: Pasirašančio asmens vardas ir pavardė:
A100: 6790-3 2022-07-04 13:45:46
